[Event "Late-Titled-Tuesday-Blitz-May-14-2024"]
[Site "Chess.com"]
[Date "2024.05.14"]
[Round "2"]
[White "lrjchess"]
[Black "PawnEatingZombie"]
[Result "0-1"]
[WhiteElo "2505"]
[BlackElo "2308"]
[TimeControl "180+1"]
[EndTime "14:15:09 PDT"]
[Termination "PawnEatingZombie won by resignation"]

1. e4 {[%clk 0:02:57]} 1... c5 {[%clk 0:02:58.5]} 2. b3 {[%clk 0:02:57.1]} 2...
Nc6 {[%clk 0:02:56.5]} 3. Bb2 {[%clk 0:02:57.1]} 3... e5 {[%clk 0:02:49.9]} 4.
Bc4 {[%clk 0:02:57.1]} 4... Nf6 {[%clk 0:02:36.5]} 5. d3 {[%clk 0:02:57.1]} 5...
Be7 {[%clk 0:02:33]} 6. Nc3 {[%clk 0:02:57.5]} 6... d6 {[%clk 0:02:32.2]} 7.
Nge2 {[%clk 0:02:58.1]} 7... O-O {[%clk 0:02:31.6]} 8. O-O {[%clk 0:02:58.8]}
8... Be6 {[%clk 0:02:27.2]} 9. h3 {[%clk 0:02:59.2]} 9... Nd4 {[%clk 0:02:24.5]}
10. f4 {[%clk 0:02:58.6]} 10... exf4 {[%clk 0:02:03.1]} 11. Nxf4 {[%clk
0:02:53.8]} 11... Qd7 {[%clk 0:01:56.3]} 12. Ncd5 {[%clk 0:02:34.2]} 12... b5
{[%clk 0:01:50.4]} 13. Nxe7+ {[%clk 0:02:30.6]} 13... Qxe7 {[%clk 0:01:44.8]}
14. Bxe6 {[%clk 0:02:30.8]} 14... fxe6 {[%clk 0:01:40.9]} 15. Bxd4 {[%clk
0:02:29.5]} 15... cxd4 {[%clk 0:01:40.6]} 16. a4 {[%clk 0:02:25.7]} 16... b4
{[%clk 0:01:36.3]} 17. Qe2 {[%clk 0:02:22]} 17... e5 {[%clk 0:01:33.5]} 18. Nd5
{[%clk 0:02:20.2]} 18... Nxd5 {[%clk 0:01:33.6]} 19. exd5 {[%clk 0:02:21.1]}
19... a5 {[%clk 0:01:25.8]} 20. Rf3 {[%clk 0:02:19.7]} 20... Rxf3 {[%clk
0:01:25]} 21. Qxf3 {[%clk 0:02:20.6]} 21... Rf8 {[%clk 0:01:23.8]} 22. Qg4
{[%clk 0:02:21]} 22... Qf7 {[%clk 0:01:10.2]} 23. Kh2 {[%clk 0:02:19.6]} 23...
Qf4+ {[%clk 0:01:09.4]} 24. Qxf4 {[%clk 0:02:19.6]} 24... Rxf4 {[%clk
0:01:09.3]} 25. Kg3 {[%clk 0:02:20.1]} 25... g5 {[%clk 0:01:00.3]} 26. Re1
{[%clk 0:02:20.2]} 26... Kg7 {[%clk 0:00:59.4]} 27. Re2 {[%clk 0:02:20.9]} 27...
Kg6 {[%clk 0:00:59.5]} 28. Rf2 {[%clk 0:02:21.7]} 28... h5 {[%clk 0:00:58.1]}
29. Rxf4 {[%clk 0:02:21.3]} 29... exf4+ {[%clk 0:00:51.2]} 30. Kf3 {[%clk
0:02:21.5]} 30... Kf5 {[%clk 0:00:51.9]} 31. g3 {[%clk 0:02:20.3]} 31... g4+
{[%clk 0:00:48.1]} 0-1

[Event "Late-Titled-Tuesday-Blitz-May-14-2024"]
[Site "Chess.com"]
[Date "2024.05.14"]
[Round "2"]
[White "schondeln"]
[Black "FernandoArauzAlonso"]
[Result "1-0"]
[WhiteElo "2349"]
[BlackElo "2521"]
[TimeControl "180+1"]
[EndTime "14:15:18 PDT"]
[Termination "schondeln won by resignation"]

1. e4 {[%clk 0:03:00.9]} 1... e5 {[%clk 0:03:00.1]} 2. Nf3 {[%clk 0:03:00.7]}
2... d6 {[%clk 0:02:59.3]} 3. d4 {[%clk 0:02:59.4]} 3... exd4 {[%clk 0:02:59.8]}
4. Nxd4 {[%clk 0:02:59]} 4... Nf6 {[%clk 0:02:59.2]} 5. Nc3 {[%clk 0:02:59.1]}
5... Be7 {[%clk 0:02:59.4]} 6. g3 {[%clk 0:02:59.2]} 6... O-O {[%clk 0:02:59.8]}
7. Bg2 {[%clk 0:02:59.4]} 7... Re8 {[%clk 0:03:00.4]} 8. O-O {[%clk 0:02:58.1]}
8... Bf8 {[%clk 0:02:48.2]} 9. h3 {[%clk 0:02:54.5]} 9... Nbd7 {[%clk
0:02:46.4]} 10. Re1 {[%clk 0:02:48.6]} 10... Nc5 {[%clk 0:02:45.4]} 11. Kh2
{[%clk 0:02:48.1]} 11... Ne6 {[%clk 0:02:45.1]} 12. Be3 {[%clk 0:02:44.6]} 12...
Nd7 {[%clk 0:02:36.6]} 13. Qd2 {[%clk 0:02:37.7]} 13... Ndc5 {[%clk 0:02:34.6]}
14. Rad1 {[%clk 0:02:32.8]} 14... Nxd4 {[%clk 0:02:34.7]} 15. Bxd4 {[%clk
0:02:30.9]} 15... Ne6 {[%clk 0:02:34.9]} 16. Be3 {[%clk 0:02:31]} 16... g6
{[%clk 0:02:14.5]} 17. Nd5 {[%clk 0:02:29.8]} 17... Bg7 {[%clk 0:02:12.3]} 18.
c3 {[%clk 0:02:29.6]} 18... Bd7 {[%clk 0:02:03]} 19. f4 {[%clk 0:02:26.1]} 19...
Bc6 {[%clk 0:02:02.9]} 20. Bf2 {[%clk 0:01:53.1]} 20... Bxd5 {[%clk 0:01:55.6]}
21. Qxd5 {[%clk 0:01:50.6]} 21... Rb8 {[%clk 0:01:43.6]} 22. a3 {[%clk
0:01:48.1]} 22... Qe7 {[%clk 0:01:36.8]} 23. Bxa7 {[%clk 0:01:45]} 23... Ra8
{[%clk 0:01:30.2]} 24. Bf2 {[%clk 0:01:44.3]} 24... Nc5 {[%clk 0:01:28.3]} 25.
e5 {[%clk 0:01:39.2]} 25... Na4 {[%clk 0:01:24.3]} 26. exd6 {[%clk 0:01:37.5]}
26... cxd6 {[%clk 0:01:25.2]} 27. Rxe7 {[%clk 0:01:36.5]} 1-0

[Event "Late-Titled-Tuesday-Blitz-May-14-2024"]
[Site "Chess.com"]
[Date "2024.05.14"]
[Round "2"]
[White "Felix-Rose"]
[Black "zimmm36"]
[Result "0-1"]
[WhiteElo "2288"]
[BlackElo "2718"]
[TimeControl "180+1"]
[EndTime "14:15:27 PDT"]
[Termination "zimmm36 won by resignation"]

1. e4 {[%clk 0:03:00.9]} 1... c6 {[%clk 0:02:59.7]} 2. d4 {[%clk 0:02:59.9]}
2... d5 {[%clk 0:03:00.2]} 3. e5 {[%clk 0:03:00.3]} 3... Bf5 {[%clk 0:03:00.2]}
4. h4 {[%clk 0:03:00.5]} 4... h5 {[%clk 0:03:00.2]} 5. Bd3 {[%clk 0:03:00.6]}
5... Bxd3 {[%clk 0:03:00.7]} 6. Qxd3 {[%clk 0:03:01.5]} 6... Qa5+ {[%clk
0:03:01.3]} 7. Bd2 {[%clk 0:03:00.4]} 7... Qa6 {[%clk 0:03:01.3]} 8. e6 {[%clk
0:03:01]} 8... Qxd3 {[%clk 0:03:00.6]} 9. exf7+ {[%clk 0:03:01.2]} 9... Kxf7
{[%clk 0:03:01.5]} 10. cxd3 {[%clk 0:03:01.3]} 10... Nh6 {[%clk 0:03:02.4]} 11.
Nf3 {[%clk 0:02:58.6]} 11... Nf5 {[%clk 0:02:55.1]} 12. O-O {[%clk 0:02:55]}
12... Nd7 {[%clk 0:02:46.3]} 13. Re1 {[%clk 0:02:55]} 13... Re8 {[%clk
0:02:23.7]} 14. Bc3 {[%clk 0:02:48.7]} 14... e6 {[%clk 0:02:17.8]} 15. Nbd2
{[%clk 0:02:45.8]} 15... Be7 {[%clk 0:02:17.5]} 16. g3 {[%clk 0:02:44.3]} 16...
Bf6 {[%clk 0:02:16.2]} 17. Kg2 {[%clk 0:02:41.2]} 17... Re7 {[%clk 0:02:12.3]}
18. b4 {[%clk 0:02:39.2]} 18... Rhe8 {[%clk 0:02:11.2]} 19. Ne5+ {[%clk
0:02:26]} 19... Bxe5 {[%clk 0:02:09.8]} 20. dxe5 {[%clk 0:02:25.9]} 20... d4
{[%clk 0:02:07.8]} 21. Bb2 {[%clk 0:02:26.1]} 21... Nb6 {[%clk 0:02:05.6]} 22.
Nf3 {[%clk 0:02:22.4]} 22... Rd8 {[%clk 0:02:02.3]} 23. a4 {[%clk 0:02:21.6]}
23... Nd5 {[%clk 0:01:56.5]} 24. Nxd4 {[%clk 0:02:17.6]} 24... Nxd4 {[%clk
0:01:54.5]} 25. Bxd4 {[%clk 0:02:17.4]} 25... Nxb4 {[%clk 0:01:55.2]} 26. Bc5
{[%clk 0:02:17.7]} 26... Nxd3 {[%clk 0:01:55.7]} 27. Bxe7 {[%clk 0:02:17.6]}
27... Nxe1+ {[%clk 0:01:55.3]} 28. Rxe1 {[%clk 0:02:17.1]} 28... Kxe7 {[%clk
0:01:56.2]} 29. Rb1 {[%clk 0:02:16.9]} 29... b6 {[%clk 0:01:49.2]} 30. Rc1
{[%clk 0:02:15.5]} 30... c5 {[%clk 0:01:48.7]} 31. a5 {[%clk 0:02:16.1]} 31...
Kd7 {[%clk 0:01:34.6]} 32. axb6 {[%clk 0:02:10.1]} 32... axb6 {[%clk 0:01:35.5]}
33. Ra1 {[%clk 0:02:10.1]} 33... Kc6 {[%clk 0:01:35.3]} 34. Ra7 {[%clk
0:02:10.4]} 34... Rd7 {[%clk 0:01:35.4]} 35. Ra8 {[%clk 0:02:10.9]} 35... c4
{[%clk 0:01:35.6]} 36. f4 {[%clk 0:01:59.8]} 36... b5 {[%clk 0:01:33.3]} 37.
Ra6+ {[%clk 0:01:58]} 37... Kd5 {[%clk 0:01:31.6]} 38. Rb6 {[%clk 0:01:58.7]}
38... Kc5 {[%clk 0:01:30]} 39. Rxe6 {[%clk 0:01:58.9]} 39... c3 {[%clk
0:01:30.5]} 40. Re8 {[%clk 0:01:59.1]} 40... Rc7 {[%clk 0:01:30.8]} 41. e6
{[%clk 0:01:57.3]} 41... c2 {[%clk 0:01:30.9]} 42. e7 {[%clk 0:01:58]} 42...
c1=Q {[%clk 0:01:31.1]} 43. Rg8 {[%clk 0:01:53.9]} 43... Qc2+ {[%clk 0:01:30.1]}
44. Kh3 {[%clk 0:01:54.3]} 44... Qf5+ {[%clk 0:01:30.3]} 45. Kh2 {[%clk
0:01:54.1]} 45... Rxe7 {[%clk 0:01:30.8]} 0-1

[Event "Late-Titled-Tuesday-Blitz-May-14-2024"]
[Site "Chess.com"]
[Date "2024.05.14"]
[Round "2"]
[White "KebabJangles"]
[Black "becemix"]
[Result "0-1"]
[WhiteElo "2367"]
[BlackElo "2596"]
[TimeControl "180+1"]
[EndTime "14:15:32 PDT"]
[Termination "becemix won by resignation"]

1. d4 {[%clk 0:03:00.9]} 1... d5 {[%clk 0:02:59.5]} 2. c4 {[%clk 0:02:56.9]}
2... e6 {[%clk 0:02:59.3]} 3. Nf3 {[%clk 0:02:51]} 3... c6 {[%clk 0:02:58.7]} 4.
Nc3 {[%clk 0:02:49.7]} 4... dxc4 {[%clk 0:02:56.2]} 5. a4 {[%clk 0:02:48.8]}
5... Bb4 {[%clk 0:02:55.5]} 6. e4 {[%clk 0:02:45.6]} 6... b5 {[%clk 0:02:55.4]}
7. Be2 {[%clk 0:02:38.1]} 7... Nf6 {[%clk 0:02:53.9]} 8. e5 {[%clk 0:02:35.6]}
8... Ne4 {[%clk 0:02:52.9]} 9. Qc2 {[%clk 0:02:34.9]} 9... Nxc3 {[%clk
0:02:44.3]} 10. bxc3 {[%clk 0:02:35.8]} 10... Be7 {[%clk 0:02:44.8]} 11. axb5
{[%clk 0:02:36]} 11... cxb5 {[%clk 0:02:45]} 12. O-O {[%clk 0:02:35.8]} 12...
O-O {[%clk 0:02:41.4]} 13. h4 {[%clk 0:02:33.8]} 13... h6 {[%clk 0:02:32.7]} 14.
Nd2 {[%clk 0:02:27.3]} 14... Bb7 {[%clk 0:02:29.2]} 15. g3 {[%clk 0:02:26.3]}
15... Nd7 {[%clk 0:02:22.3]} 16. Ne4 {[%clk 0:02:25.3]} 16... Nb6 {[%clk
0:01:30.7]} 17. Ba3 {[%clk 0:02:23.3]} 17... Bxa3 {[%clk 0:01:29.3]} 18. Rxa3
{[%clk 0:02:24.2]} 18... Bxe4 {[%clk 0:01:20.5]} 19. Qxe4 {[%clk 0:02:25.1]}
19... Nd5 {[%clk 0:01:18.9]} 20. Rb1 {[%clk 0:02:23.7]} 20... a6 {[%clk
0:01:17.9]} 21. Bf3 {[%clk 0:02:21]} 21... f5 {[%clk 0:01:13.8]} 22. exf6 {[%clk
0:02:20.9]} 22... Qxf6 {[%clk 0:01:13.1]} 23. Kg2 {[%clk 0:02:17.4]} 23... Rf7
{[%clk 0:01:05.4]} 24. Rb2 {[%clk 0:02:16.2]} 24... Raf8 {[%clk 0:01:04.8]} 25.
Bg4 {[%clk 0:02:16]} 25... Qe7 {[%clk 0:00:51.8]} 26. Bxe6 {[%clk 0:02:11.5]}
26... Qxa3 {[%clk 0:00:50.9]} 27. Re2 {[%clk 0:01:57.5]} 27... Nxc3 {[%clk
0:00:44.4]} 28. Bxf7+ {[%clk 0:01:57.1]} 28... Rxf7 {[%clk 0:00:45.3]} 0-1

[Event "Late-Titled-Tuesday-Blitz-May-14-2024"]
[Site "Chess.com"]
[Date "2024.05.14"]
[Round "2"]
[White "Kombinator01"]
[Black "manitodeplomo"]
[Result "0-1"]
[WhiteElo "2366"]
[BlackElo "2565"]
[TimeControl "180+1"]
[EndTime "14:15:45 PDT"]
[Termination "manitodeplomo won by resignation"]

1. e4 {[%clk 0:03:00.9]} 1... Nc6 {[%clk 0:02:58.2]} 2. Nf3 {[%clk 0:02:59.9]}
2... d5 {[%clk 0:02:57]} 3. e5 {[%clk 0:02:52]} 3... Bg4 {[%clk 0:02:56.1]} 4.
d4 {[%clk 0:02:50.6]} 4... Bxf3 {[%clk 0:02:55.6]} 5. gxf3 {[%clk 0:02:48.9]}
5... e6 {[%clk 0:02:55.9]} 6. c3 {[%clk 0:02:48.6]} 6... Qh4 {[%clk 0:02:51.3]}
7. f4 {[%clk 0:02:43.4]} 7... Nge7 {[%clk 0:02:46.5]} 8. Qf3 {[%clk 0:02:42.3]}
8... g6 {[%clk 0:02:34.5]} 9. Qg3 {[%clk 0:02:37.8]} 9... Nf5 {[%clk 0:02:30.5]}
10. Qxh4 {[%clk 0:02:33.5]} 10... Nxh4 {[%clk 0:02:31.4]} 11. Bd3 {[%clk
0:02:30.1]} 11... Bh6 {[%clk 0:02:28.7]} 12. Na3 {[%clk 0:02:28.2]} 12... O-O
{[%clk 0:02:26.3]} 13. Ke2 {[%clk 0:02:18.3]} 13... f6 {[%clk 0:02:23.9]} 14.
Be3 {[%clk 0:02:17.6]} 14... fxe5 {[%clk 0:02:22.1]} 15. fxe5 {[%clk 0:02:15.4]}
15... Kg7 {[%clk 0:01:50.4]} 16. Nc2 {[%clk 0:02:05.6]} 16... Rf7 {[%clk
0:01:46.6]} 17. Raf1 {[%clk 0:01:58.8]} 17... Raf8 {[%clk 0:01:45.9]} 18. Rhg1
{[%clk 0:01:57]} 18... Nf3 {[%clk 0:01:35]} 19. Rg2 {[%clk 0:01:54.1]} 19...
Bxe3 {[%clk 0:01:34]} 20. Nxe3 {[%clk 0:01:49.7]} 20... Ne7 {[%clk 0:01:24.5]}
21. Ng4 {[%clk 0:01:48.1]} 21... Ng8 {[%clk 0:01:22.1]} 22. Nf6 {[%clk
0:01:43.6]} 22... Nxf6 {[%clk 0:01:14.4]} 23. Kxf3 {[%clk 0:01:33.2]} 23... Nh5+
{[%clk 0:01:13.1]} 24. Ke3 {[%clk 0:01:31.4]} 24... Rf3+ {[%clk 0:01:12.8]} 25.
Kd2 {[%clk 0:01:30.8]} 25... Rxd3+ {[%clk 0:01:10.1]} 26. Kxd3 {[%clk
0:01:21.3]} 26... Nf4+ {[%clk 0:01:09.3]} 0-1

[Event "Late-Titled-Tuesday-Blitz-May-14-2024"]
[Site "Chess.com"]
[Date "2024.05.14"]
[Round "2"]
[White "1g60-1"]
[Black "Agibileg"]
[Result "0-1"]
[WhiteElo "2421"]
[BlackElo "2866"]
[TimeControl "180+1"]
[EndTime "14:15:51 PDT"]
[Termination "Agibileg won by resignation"]

1. e4 {[%clk 0:03:00.9]} 1... c5 {[%clk 0:02:59.9]} 2. Nf3 {[%clk 0:03:01.3]}
2... e6 {[%clk 0:02:59.4]} 3. d4 {[%clk 0:03:01.4]} 3... cxd4 {[%clk 0:03:00.3]}
4. Nxd4 {[%clk 0:03:02.3]} 4... Nc6 {[%clk 0:03:00.6]} 5. Nc3 {[%clk 0:03:02.8]}
5... a6 {[%clk 0:03:00.1]} 6. Nxc6 {[%clk 0:02:59.2]} 6... bxc6 {[%clk 0:03:01]}
7. Bd3 {[%clk 0:02:59.6]} 7... d5 {[%clk 0:03:01.1]} 8. O-O {[%clk 0:02:59.9]}
8... Nf6 {[%clk 0:03:01.4]} 9. e5 {[%clk 0:02:56.6]} 9... Nd7 {[%clk 0:03:01.3]}
10. f4 {[%clk 0:02:56.9]} 10... h5 {[%clk 0:03:00]} 11. Qe2 {[%clk 0:02:49.8]}
11... h4 {[%clk 0:02:59.7]} 12. f5 {[%clk 0:02:48.7]} 12... Qb6+ {[%clk
0:02:58.2]} 13. Kh1 {[%clk 0:02:48.2]} 13... Nc5 {[%clk 0:02:50.6]} 14. Be3
{[%clk 0:02:44.2]} 14... Qxb2 {[%clk 0:02:50.6]} 15. Bd4 {[%clk 0:02:39.6]}
15... Nxd3 {[%clk 0:02:40.8]} 16. Qxd3 {[%clk 0:02:34.6]} 16... c5 {[%clk
0:02:40.8]} 17. Bg1 {[%clk 0:01:54.7]} 17... h3 {[%clk 0:02:35.6]} 18. f6 {[%clk
0:01:35.8]} 18... hxg2+ {[%clk 0:02:34.4]} 19. Kxg2 {[%clk 0:01:36.1]} 19... Qb7
{[%clk 0:02:32.1]} 20. Rab1 {[%clk 0:01:29.8]} 20... Qc6 {[%clk 0:02:32.1]} 21.
Qf3 {[%clk 0:01:28.6]} 21... gxf6 {[%clk 0:02:17.3]} 22. exf6 {[%clk 0:01:12.9]}
22... Bb7 {[%clk 0:02:09.1]} 23. Rb2 {[%clk 0:01:00.1]} 23... Rd8 {[%clk
0:02:02.7]} 24. Rfb1 {[%clk 0:00:59.6]} 24... Ba8 {[%clk 0:02:02.7]} 25. Rb8
{[%clk 0:00:55.8]} 25... Bd6 {[%clk 0:02:02.5]} 26. Rxd8+ {[%clk 0:00:55.6]}
26... Kxd8 {[%clk 0:02:03.4]} 27. Qg4 {[%clk 0:00:33.8]} 27... d4+ {[%clk
0:02:01.2]} 28. Kf2 {[%clk 0:00:30.2]} 28... dxc3 {[%clk 0:01:58.4]} 0-1

[Event "Late-Titled-Tuesday-Blitz-May-14-2024"]
[Site "Chess.com"]
[Date "2024.05.14"]
[Round "2"]
[White "rhungaski"]
[Black "hsd2016"]
[Result "1-0"]
[WhiteElo "2530"]
[BlackElo "2316"]
[TimeControl "180+1"]
[EndTime "14:15:54 PDT"]
[Termination "rhungaski won by resignation"]

1. b3 {[%clk 0:02:59.3]} 1... e5 {[%clk 0:02:56.1]} 2. Bb2 {[%clk 0:02:59.5]}
2... Nc6 {[%clk 0:02:57]} 3. e3 {[%clk 0:02:57.4]} 3... d5 {[%clk 0:02:56.8]} 4.
Bb5 {[%clk 0:02:55.8]} 4... Bd6 {[%clk 0:02:57]} 5. Nf3 {[%clk 0:02:42]} 5... f6
{[%clk 0:02:37.6]} 6. d4 {[%clk 0:02:41.8]} 6... e4 {[%clk 0:02:27.8]} 7. Nfd2
{[%clk 0:02:42.4]} 7... f5 {[%clk 0:02:21.3]} 8. c4 {[%clk 0:02:35.3]} 8... Nf6
{[%clk 0:02:20.9]} 9. Nc3 {[%clk 0:02:32.1]} 9... Be6 {[%clk 0:02:14.1]} 10.
cxd5 {[%clk 0:02:30.7]} 10... Nxd5 {[%clk 0:02:13.3]} 11. a3 {[%clk 0:01:56]}
11... Qg5 {[%clk 0:02:08.5]} 12. g3 {[%clk 0:01:50]} 12... O-O {[%clk
0:02:06.1]} 13. Nxd5 {[%clk 0:01:50]} 13... Bxd5 {[%clk 0:02:04.9]} 14. Bc4
{[%clk 0:01:50.9]} 14... Ne7 {[%clk 0:01:59.6]} 15. b4 {[%clk 0:01:40.3]} 15...
c6 {[%clk 0:01:58.8]} 16. Qc2 {[%clk 0:01:37.9]} 16... a6 {[%clk 0:01:56.3]} 17.
Nb3 {[%clk 0:01:36.7]} 17... Bxc4 {[%clk 0:01:32]} 18. Qxc4+ {[%clk 0:01:37.6]}
18... Nd5 {[%clk 0:01:32.9]} 19. Nc5 {[%clk 0:01:37.9]} 19... Rf7 {[%clk
0:01:33.6]} 20. Nxb7 {[%clk 0:01:30.3]} 20... Bf8 {[%clk 0:01:03.1]} 21. h4
{[%clk 0:01:21.6]} 21... Nxe3 {[%clk 0:00:53.2]} 22. Qxf7+ {[%clk 0:01:19.4]}
1-0

[Event "Late-Titled-Tuesday-Blitz-May-14-2024"]
[Site "Chess.com"]
[Date "2024.05.14"]
[Round "2"]
[White "SHIVACalypso"]
[Black "SchmakAttack"]
[Result "0-1"]
[WhiteElo "2550"]
[BlackElo "2784"]
[TimeControl "180+1"]
[EndTime "14:16:04 PDT"]
[Termination "SchmakAttack won by resignation"]

1. d4 {[%clk 0:03:00.9]} 1... Nf6 {[%clk 0:02:58.8]} 2. Nf3 {[%clk 0:02:57.7]}
2... d5 {[%clk 0:02:58.5]} 3. c4 {[%clk 0:02:55.1]} 3... e6 {[%clk 0:02:58.7]}
4. Nc3 {[%clk 0:02:54.6]} 4... c6 {[%clk 0:02:57.3]} 5. Bg5 {[%clk 0:02:52.6]}
5... dxc4 {[%clk 0:02:52]} 6. e4 {[%clk 0:02:51.9]} 6... b5 {[%clk 0:02:52.7]}
7. e5 {[%clk 0:02:48.4]} 7... h6 {[%clk 0:02:52.8]} 8. Bh4 {[%clk 0:02:45.4]}
8... g5 {[%clk 0:02:53.2]} 9. exf6 {[%clk 0:02:44.2]} 9... gxh4 {[%clk
0:02:52.8]} 10. Ne4 {[%clk 0:02:43.2]} 10... Nd7 {[%clk 0:02:39]} 11. a3 {[%clk
0:02:12.5]} 11... Nxf6 {[%clk 0:02:33.8]} 12. Qc2 {[%clk 0:02:11.7]} 12... Nxe4
{[%clk 0:02:21.4]} 13. Qxe4 {[%clk 0:02:10]} 13... Qa5+ {[%clk 0:02:21.9]} 14.
Nd2 {[%clk 0:02:09.9]} 14... Bb7 {[%clk 0:02:21]} 15. Be2 {[%clk 0:02:02.7]}
15... c3 {[%clk 0:02:08.7]} 16. bxc3 {[%clk 0:01:50.6]} 16... Qxc3 {[%clk
0:02:09.6]} 17. Rd1 {[%clk 0:01:48.2]} 17... O-O-O {[%clk 0:02:03.8]} 18. O-O
{[%clk 0:01:40.5]} 18... Rxd4 {[%clk 0:01:31.4]} 19. Qe5 {[%clk 0:01:22.4]}
19... Rd3 {[%clk 0:01:19.5]} 20. Qf4 {[%clk 0:01:08.3]} 20... Bd6 {[%clk
0:01:12.2]} 21. Qxf7 {[%clk 0:01:08.3]} 21... Rxd2 {[%clk 0:01:12.1]} 22. Qxe6+
{[%clk 0:01:08]} 22... Kc7 {[%clk 0:01:11.7]} 23. Rc1 {[%clk 0:01:07.8]} 23...
Qe5 {[%clk 0:01:05.4]} 24. Qf7+ {[%clk 0:01:08]} 24... Kb6 {[%clk 0:01:03.2]}
25. f4 {[%clk 0:01:03.2]} 25... Qxe2 {[%clk 0:00:59.2]} 0-1

[Event "Late-Titled-Tuesday-Blitz-May-14-2024"]
[Site "Chess.com"]
[Date "2024.05.14"]
[Round "2"]
[White "remyrushbrooke"]
[Black "Adar_07"]
[Result "1-0"]
[WhiteElo "2343"]
[BlackElo "2708"]
[TimeControl "180+1"]
[EndTime "14:16:12 PDT"]
[Termination "remyrushbrooke won by checkmate"]

1. d4 {[%clk 0:03:00.9]} 1... Nf6 {[%clk 0:02:57.9]} 2. Nc3 {[%clk 0:03:01.4]}
2... d5 {[%clk 0:02:57.5]} 3. Bg5 {[%clk 0:03:00.7]} 3... c5 {[%clk 0:02:56.8]}
4. Bxf6 {[%clk 0:03:00.1]} 4... gxf6 {[%clk 0:02:56.9]} 5. e4 {[%clk 0:03:00.3]}
5... dxe4 {[%clk 0:02:35.1]} 6. dxc5 {[%clk 0:03:00.1]} 6... Qa5 {[%clk
0:02:33.5]} 7. Qh5 {[%clk 0:02:59.4]} 7... e6 {[%clk 0:02:28.7]} 8. O-O-O {[%clk
0:02:48.8]} 8... Bxc5 {[%clk 0:02:02.8]} 9. Bb5+ {[%clk 0:02:45]} 9... Bd7
{[%clk 0:01:51.2]} 10. Qxc5 {[%clk 0:02:42.6]} 10... Nc6 {[%clk 0:01:50.1]} 11.
Rxd7 {[%clk 0:02:23.2]} 11... a6 {[%clk 0:01:46.9]} 12. Nxe4 {[%clk 0:01:40.6]}
12... Qe1+ {[%clk 0:01:34.4]} 13. Rd1 {[%clk 0:01:40.3]} 13... Qxe4 {[%clk
0:01:35.3]} 14. Bxc6+ {[%clk 0:01:34.1]} 14... bxc6 {[%clk 0:01:33.6]} 15. Nf3
{[%clk 0:01:28.9]} 15... Rb8 {[%clk 0:01:01.5]} 16. Qd6 {[%clk 0:01:08.6]} 16...
Qb4 {[%clk 0:01:00.7]} 17. Qxb4 {[%clk 0:01:01]} 17... Rxb4 {[%clk 0:01:01.6]}
18. Rd6 {[%clk 0:01:00.6]} 18... Rg8 {[%clk 0:00:57.9]} 19. g3 {[%clk 0:01:00]}
19... Rc4 {[%clk 0:00:52]} 20. Rhd1 {[%clk 0:01:00.2]} 20... Rgg4 {[%clk
0:00:44.6]} 21. Rd8+ {[%clk 0:00:59.5]} 21... Ke7 {[%clk 0:00:44.4]} 22. R1d7#
{[%clk 0:01:00]} 1-0

[Event "Late-Titled-Tuesday-Blitz-May-14-2024"]
[Site "Chess.com"]
[Date "2024.05.14"]
[Round "2"]
[White "Duhless"]
[Black "only_strong_moves"]
[Result "1-0"]
[WhiteElo "3109"]
[BlackElo "2692"]
[TimeControl "180+1"]
[EndTime "14:16:16 PDT"]
[Termination "Duhless won by checkmate"]

1. e4 {[%clk 0:03:00.9]} 1... e5 {[%clk 0:02:58.4]} 2. Bc4 {[%clk 0:03:00.3]}
2... Nf6 {[%clk 0:02:58.3]} 3. Nc3 {[%clk 0:02:59.7]} 3... Nc6 {[%clk 0:02:59]}
4. d3 {[%clk 0:02:59.6]} 4... Bc5 {[%clk 0:02:59.2]} 5. h3 {[%clk 0:02:56.7]}
5... O-O {[%clk 0:02:59.3]} 6. Nge2 {[%clk 0:02:56]} 6... d6 {[%clk 0:02:59.3]}
7. O-O {[%clk 0:02:56.1]} 7... Be6 {[%clk 0:02:59.8]} 8. Kh1 {[%clk 0:02:53.9]}
8... Bxc4 {[%clk 0:02:52.2]} 9. dxc4 {[%clk 0:02:53.8]} 9... Nb8 {[%clk
0:02:52.8]} 10. Bg5 {[%clk 0:02:49.4]} 10... Nbd7 {[%clk 0:02:52.1]} 11. a3
{[%clk 0:02:38.3]} 11... a6 {[%clk 0:02:50.8]} 12. b4 {[%clk 0:02:37]} 12... Ba7
{[%clk 0:02:50.7]} 13. Qd3 {[%clk 0:02:34.3]} 13... h6 {[%clk 0:02:50.4]} 14.
Bd2 {[%clk 0:02:31.2]} 14... Qe7 {[%clk 0:02:47.4]} 15. Ng3 {[%clk 0:02:29.7]}
15... Rfd8 {[%clk 0:02:39.3]} 16. Nf5 {[%clk 0:02:28.9]} 16... Qe6 {[%clk
0:02:30.8]} 17. Bxh6 {[%clk 0:02:24.2]} 17... gxh6 {[%clk 0:02:26.5]} 18. Qg3+
{[%clk 0:02:23.7]} 18... Kf8 {[%clk 0:02:25.7]} 19. Qg7+ {[%clk 0:02:22.3]}
19... Ke8 {[%clk 0:02:26]} 20. Qh8+ {[%clk 0:02:19.1]} 20... Nf8 {[%clk
0:02:26.3]} 21. Ng7+ {[%clk 0:02:19.7]} 21... Ke7 {[%clk 0:02:27]} 22. Nxe6
{[%clk 0:02:20.3]} 22... Nxe6 {[%clk 0:02:27.2]} 23. Qxh6 {[%clk 0:02:20.3]}
23... Rh8 {[%clk 0:02:27.1]} 24. Qd2 {[%clk 0:02:01.9]} 24... Bd4 {[%clk
0:02:24.3]} 25. Rae1 {[%clk 0:01:56.3]} 25... c6 {[%clk 0:02:24.4]} 26. Re3
{[%clk 0:01:52.2]} 26... Rag8 {[%clk 0:02:17.2]} 27. Ne2 {[%clk 0:01:47.9]}
27... Bxe3 {[%clk 0:02:14.7]} 28. Qxe3 {[%clk 0:01:47.4]} 28... Rh4 {[%clk
0:02:12.8]} 29. Ng3 {[%clk 0:01:41.8]} 29... Kd7 {[%clk 0:02:06.8]} 30. Nf5
{[%clk 0:01:40.2]} 30... Rxe4 {[%clk 0:02:00.8]} 31. Qb6 {[%clk 0:01:40]} 31...
Nd8 {[%clk 0:01:59.8]} 32. Rd1 {[%clk 0:01:39.8]} 32... Ne8 {[%clk 0:01:59.4]}
33. Nxd6 {[%clk 0:01:37.8]} 33... Nxd6 {[%clk 0:01:55.1]} 34. c5 {[%clk
0:01:37.9]} 34... Rd4 {[%clk 0:01:53.3]} 35. Rxd4 {[%clk 0:01:37.5]} 35... exd4
{[%clk 0:01:54.2]} 36. cxd6 {[%clk 0:01:38.2]} 36... Kxd6 {[%clk 0:01:55.1]} 37.
Qxd4+ {[%clk 0:01:37.3]} 37... Kc7 {[%clk 0:01:55.2]} 38. h4 {[%clk 0:01:33.2]}
38... Rg6 {[%clk 0:01:54.1]} 39. h5 {[%clk 0:01:32.6]} 39... Rd6 {[%clk
0:01:54.2]} 40. Qf4 {[%clk 0:01:27.8]} 40... Kd7 {[%clk 0:01:39.1]} 41. h6
{[%clk 0:01:24.5]} 41... Rd5 {[%clk 0:01:35.2]} 42. Qg4+ {[%clk 0:01:20.5]}
42... Ne6 {[%clk 0:01:25.8]} 43. h7 {[%clk 0:01:20.4]} 43... Rh5+ {[%clk
0:01:26.7]} 44. Qxh5 {[%clk 0:01:20.1]} 44... Ng5 {[%clk 0:01:27.6]} 45. Qxg5
{[%clk 0:01:19.9]} 45... f6 {[%clk 0:01:28.5]} 46. Qxf6 {[%clk 0:01:20.1]} 46...
a5 {[%clk 0:01:28.9]} 47. bxa5 {[%clk 0:01:19.7]} 47... b6 {[%clk 0:01:29.8]}
48. axb6 {[%clk 0:01:19.3]} 48... c5 {[%clk 0:01:30.7]} 49. h8=Q {[%clk
0:01:18.7]} 49... c4 {[%clk 0:01:30.7]} 50. Qhg7+ {[%clk 0:01:19.6]} 50... Kc8
{[%clk 0:01:30.3]} 51. Qff8# {[%clk 0:01:20.5]} 1-0